fUST/lending_fUST_20240501
["ID","MTS","AMOUNT","RATE_DAILY","PERIOD"]
[325164543,1714546155260,-414.93419446,0.00061553,120]
[325164544,1714546155281,-1000.0,0.00063917,120]
[325164545,1714546155302,-460.31323,0.0006457,2]
[325164546,1714546155323,-1000.0,0.00066175,120]
[325164547,1714546155345,-170.656335,0.00067288,2]
[325164548,1714546155366,-220.949281,0.00068562,120]
[325164549,1714546155387,-1000.0,0.00068845,120]
[325164550,1714546159231,1470.92,0.00046845,3]
[325164551,1714546170870,1225.77,0.00046845,3]
[325164552,1714546182214,1021.47,0.00046846,3]
[325164553,1714546193770,851.23,0.00046846,3]
[325164554,1714546206018,709.36,0.00046845,3]
[325164555,1714546209658,150.0,0.00036526,3]
[325164556,1714546217408,591.13,0.00046846,3]
[325164557,1714546225902,460.31322,0.00046855,2]
[325164558,1714546226171,460.31323,0.00057484,2]
[325164559,1714546226474,460.31323,0.00068113,2]
[325164560,1714546229070,492.61,0.00046846,3]
[325164592,1714546234187,-63726.77959242,0.00046856,15]
[325164594,1714546234199,-11841.61191779,0.00046856,15]
[325164596,1714546234210,-323489.55848979,0.00046856,15]
[325164598,1714546234219,-10000.0,0.00069657,120]
[325164600,1714546234228,-175.31,0.0007,120]
[325164602,1714546234237,-170.95245188,0.0007,120]
[325164604,1714546234247,-2000.0,0.0007068,110]
[325164606,1714546234256,-2490.97078583,0.000708,110]
[325164608,1714546234266,-1000.0,0.00071128,120]
[325164610,1714546234276,-160.77133414,0.00071132,2]
[325164612,1714546234285,-160.37590344,0.00071231,90]
[325164614,1714546234298,-500.0,0.00071231,120]
[325164616,1714546234307,-500.0,0.00071231,120]
[325164618,1714546234317,-500.0,0.00071231,120]
[325164620,1714546234327,-455.94,0.00071231,120]
[325164622,1714546234336,-999.0,0.00071231,120]
[325164624,1714546234346,-999.0,0.00071231,120]
[325164626,1714546234355,-999.0,0.00071231,120]
[325164628,1714546234367,-999.0,0.00071231,120]
[325164630,1714546234376,-999.0,0.00071231,120]
[325164632,1714546234387,-2763.6835131,0.00071232,61]
[325164634,1714546234395,-500.0,0.00071232,120]
[325164636,1714546234405,-500.0,0.00071232,120]
[325164638,1714546234415,-500.0,0.00071232,120]
[325164640,1714546234424,-239.37878792,0.00071232,120]
[325164643,1714546234434,-500.0,0.00071232,7]
[325164644,1714546234444,-500.0,0.00071232,120]
[325164647,1714546234454,-523.47522486,0.00071232,120]
[325164649,1714546234465,-543.70460344,0.00071232,120]
[325164651,1714546234474,-500.0,0.00071232,120]
[325164653,1714546234484,-500.0,0.00071232,120]
[325164655,1714546234493,-500.0,0.00071232,120]
[325164657,1714546234502,-500.0,0.00071232,120]
[325164659,1714546234511,-500.0,0.00071232,120]
[325164661,1714546234520,-586.6582426,0.00071232,120]
[325164663,1714546234530,-500.0,0.00071232,120]
[325164664,1714546234539,-500.0,0.00071232,120]
[325164666,1714546234550,-500.0,0.00071232,120]
[325164669,1714546234560,-500.0,0.00071232,120]
[325164670,1714546234569,-500.0,0.00071232,120]
[325164673,1714546234578,-184.8153411,0.00071232,120]
[325164675,1714546234587,-500.0,0.00071232,120]
[325164677,1714546234597,-500.0,0.00071232,120]
[325164679,1714546234606,-500.0,0.00071232,120]
[325164680,1714546234616,-500.0,0.00071232,120]
[325164682,1714546234625,-500.0,0.00071232,120]
[325164685,1714546234636,-605.39357917,0.00071232,120]
[325164687,1714546234646,-500.0,0.00071232,120]
[325164689,1714546234655,-500.0,0.00071232,120]
[325164690,1714546234664,-500.0,0.00071232,120]
[325164692,1714546234674,-500.0,0.00071232,120]
[325164695,1714546234683,-500.0,0.00071232,120]
[325164697,1714546234692,-500.0,0.00071232,120]
[325164698,1714546234702,-500.0,0.00071232,120]
[325164701,1714546234711,-500.0,0.00071232,120]
[325164702,1714546234720,-504.60657867,0.00071232,120]
[325164704,1714546234730,-500.30006974,0.00071232,120]
[325164706,1714546234739,-500.0,0.00071232,120]
[325164708,1714546234748,-500.0,0.00071232,120]
[325164710,1714546234757,-716.72,0.00071232,120]
[325164712,1714546234766,-500.0,0.00071232,120]
[325164714,1714546234776,-500.0,0.00071232,120]
[325164716,1714546234786,-500.0,0.00071232,120]
[325164718,1714546234796,-501.93477733,0.00071232,120]
[325164721,1714546234805,-500.6678039,0.00071232,120]
[325164723,1714546234815,-500.0,0.00071232,120]
[325164724,1714546234823,-500.0,0.00071232,120]
[325164725,1714546234832,-500.0,0.00071232,120]
[325164727,1714546234842,-479.12841342,0.00071232,120]
[325164729,1714546234851,-500.0,0.00071232,120]
[325164731,1714546234860,-500.0,0.00071232,120]
[325164733,1714546234868,-500.0,0.00071232,120]
[325164735,1714546234880,-500.0,0.00071232,120]
[325164737,1714546234889,-500.0,0.00071232,120]
[325164739,1714546234898,-500.0,0.00071232,120]
[325164741,1714546234907,-500.0,0.00071232,120]
[325164743,1714546234916,-500.0,0.00071232,120]
[325164744,1714546234925,-500.0,0.00071232,120]
[325164746,1714546234934,-500.0,0.00071232,120]
[325164748,1714546234943,-500.0,0.00071232,120]
[325164750,1714546234952,-500.0,0.00071232,120]
[325164752,1714546234961,-501.5383765,0.00071232,120]
[325164754,1714546234970,-314.27036028,0.00071232,120]
[325164756,1714546234979,-500.0,0.00071232,120]
[325164758,1714546234988,-500.0,0.00071232,120]
[325164760,1714546234997,-500.0,0.00071232,120]
[325164762,1714546235007,-500.0,0.00071232,120]
[325164764,1714546235016,-190.33138531,0.00071232,120]
[325164766,1714546235025,-500.0,0.00071232,120]
[325164768,1714546235034,-500.0,0.00071232,120]
[325164770,1714546235043,-361.40890213,0.00071232,120]
[325164772,1714546235052,-500.0,0.00071232,120]
[325164774,1714546235061,-500.0,0.00071232,60]
[325164776,1714546235070,-500.8854528,0.00071232,120]
[325164778,1714546235080,-500.0,0.00071232,120]
[325164780,1714546235089,-335.33380821,0.00071232,120]
[325164782,1714546235098,-500.89811379,0.00071232,120]
[325164784,1714546235107,-500.0,0.00071232,120]
[325164785,1714546235116,-500.0,0.00071232,120]
[325164787,1714546235125,-500.0,0.00071232,120]
[325164789,1714546235135,-500.0,0.00071232,120]
[325164791,1714546235144,-500.0,0.00071232,120]
[325164793,1714546235155,-501.91272669,0.00071232,120]
[325164795,1714546235164,-506.21028744,0.00071232,120]
[325164797,1714546235174,-500.0,0.00071232,120]
[325164799,1714546235183,-500.0,0.00071232,120]
[325164801,1714546235192,-500.0,0.00071232,120]
[325164803,1714546235202,-500.0,0.00071232,120]
[325164805,1714546235211,-500.0,0.00071232,120]
[325164807,1714546235220,-497.38242744,0.00071232,120]
[325164809,1714546235229,-500.0,0.00071232,120]
[325164811,1714546235238,-500.0,0.00071232,120]
[325164813,1714546235247,-500.0,0.00071232,120]
[325164814,1714546235257,-500.0,0.00071232,120]
[325164816,1714546235266,-502.21290731,0.00071232,120]
[325164818,1714546235281,-500.0,0.00071232,120]
[325164820,1714546235290,-503.97923721,0.00071232,120]
[325164822,1714546235299,-500.0,0.00071232,120]
[325164824,1714546235308,-500.0,0.00071232,120]
[325164826,1714546235319,-500.0,0.00071232,120]
[325164828,1714546235328,-500.0,0.00071232,120]
[325164830,1714546235337,-505.24799679,0.00071232,120]
[325164832,1714546235346,-501.03050551,0.00071232,120]
[325164834,1714546235355,-500.0,0.00071232,120]
[325164836,1714546235365,-500.0,0.00071232,120]
[325164838,1714546235374,-500.0,0.00071232,120]
[325164840,1714546235384,-500.0,0.00071232,120]
[325164842,1714546235394,-595.96942936,0.00071232,120]
[325164844,1714546235403,-500.0,0.00071232,120]
[325164846,1714546235412,-500.0,0.00071232,120]
[325164848,1714546235421,-500.0,0.00071232,120]
[325164850,1714546235430,-500.0,0.00071232,120]
[325164851,1714546235439,-500.0,0.00071232,120]
[325164853,1714546235450,-500.0,0.00071232,120]
[325164855,1714546235459,-500.0,0.00071232,120]
[325164857,1714546235468,-500.0,0.00071232,120]
[325164859,1714546235478,-500.0,0.00071232,120]
[325164861,1714546235487,-500.0,0.00071232,120]
[325164863,1714546235496,-500.0,0.00071232,120]
[325164865,1714546235505,-500.0,0.00071232,120]
[325164867,1714546235515,-500.0,0.00071232,120]
[325164869,1714546235524,-500.0,0.00071232,120]
[325164871,1714546235534,-500.0,0.00071232,120]
[325164873,1714546235543,-500.0,0.00071232,120]
[325164875,1714546235552,-500.0,0.00071232,120]
[325164877,1714546235562,-500.0,0.00071232,120]
[325164879,1714546235571,-500.0,0.00071232,120]
[325164881,1714546235581,-500.0,0.00071232,120]
[325164883,1714546235590,-500.0,0.00071232,120]
[325164885,1714546235599,-503.86074697,0.00071232,120]
[325164886,1714546235609,-551.22032398,0.00071232,120]
[325164888,1714546235618,-500.0,0.00071232,120]
[325164890,1714546235628,-500.0,0.00071232,120]
[325164892,1714546235639,-500.0,0.00071232,120]
[325164894,1714546235649,-500.0,0.00071232,120]
[325164896,1714546235658,-500.0,0.00071232,120]
[325164898,1714546235668,-500.0,0.00071232,120]
[325164900,1714546235677,-500.0,0.00071232,120]
[325164902,1714546235687,-400.23008702,0.00071232,120]
[325164904,1714546235696,-500.0,0.00071232,120]
[325164906,1714546235705,-500.0,0.00071232,120]
[325164908,1714546235714,-1875.41,0.00071232,120]
[325164910,1714546235724,-500.0,0.00071232,2]
[325164912,1714546235734,-500.0,0.00071232,120]
[325164914,1714546235743,-500.0,0.00071232,120]
[325164916,1714546235753,-1804.2,0.00071232,120]
[325164918,1714546235763,-500.0,0.00071232,120]
[325164920,1714546235772,-500.0,0.00071232,120]
[325164922,1714546235782,-500.0,0.00071232,120]
[325164924,1714546235792,-500.0,0.00071232,120]
[325164926,1714546235802,-500.0,0.00071232,120]
[325164928,1714546235811,-500.0,0.00071232,120]
[325164930,1714546235821,-500.0,0.00071232,120]
[325164932,1714546235830,-500.0,0.00071232,120]
[325164934,1714546235840,-500.0,0.00071232,120]
[325164946,1714546235947,-500.0,0.00071232,120]
[325164948,1714546235958,-610.74812381,0.00071232,120]
[325164950,1714546235967,-506.11602244,0.00071232,120]
[325164952,1714546235977,-500.0,0.00071232,120]
[325164954,1714546235986,-500.0,0.00071232,120]
[325164956,1714546235995,-500.0,0.00071232,120]
[325164958,1714546236004,-500.0,0.00071232,120]
[325164959,1714546236013,-500.0,0.00071232,120]
[325164961,1714546236022,-500.0,0.00071232,120]
[325164963,1714546236031,-500.0,0.00071232,120]
[325164965,1714546236040,-500.0,0.00071232,120]
[325164967,1714546236049,-540.29187084,0.00071232,120]
[325164969,1714546236058,-389.2782796,0.00071232,120]
[325164971,1714546236067,-500.0,0.00071232,120]
[325164973,1714546236077,-500.0,0.00071232,120]
[325164975,1714546236086,-500.0,0.00071232,120]
[325164977,1714546236095,-500.0,0.00071232,120]
[325164979,1714546236105,-500.0,0.00071232,120]
[325164981,1714546236114,-505.75666535,0.00071232,120]
[325164983,1714546236124,-500.0,0.00071232,120]
[325164985,1714546236135,-500.0,0.00071232,120]
[325164987,1714546236145,-500.0,0.00071232,120]
[325164989,1714546236154,-500.0,0.00071232,120]
[325164991,1714546236163,-500.0,0.00071232,120]
[325164993,1714546236172,-810.87,0.00071232,2]
[325164995,1714546236182,-500.0,0.00071232,120]
[325164997,1714546236191,-500.0,0.00071232,120]
[325164999,1714546236201,-500.0,0.00071232,120]
[325165001,1714546236210,-500.0,0.00071232,120]
[325165003,1714546236219,-588.11334972,0.00071232,120]
[325165005,1714546236228,-500.0,0.00071232,120]
[325165007,1714546236237,-500.0,0.00071232,120]
[325165008,1714546236247,-500.0,0.00071232,120]
[325165010,1714546236256,-582.12484227,0.00071232,120]
[325165012,1714546236265,-500.0,0.00071232,120]
[325165014,1714546236275,-500.0,0.00071232,120]
[325165016,1714546236284,-500.0,0.00071232,120]
[325165018,1714546236297,-500.0,0.00071232,120]
[325165020,1714546236307,-500.0,0.00071232,120]
[325165022,1714546236316,-500.0,0.00071232,120]
[325165024,1714546236325,-500.0,0.00071232,120]
[325165026,1714546236336,-1488.63,0.00071232,120]
[325165028,1714546236346,-3110.69,0.00071232,2]
[325165030,1714546236355,-500.0,0.00071232,120]
[325165032,1714546236364,-500.0,0.00071232,120]
[325165034,1714546236375,-502.92570621,0.00071232,120]
[325165036,1714546236389,-550.4,0.00071232,120]
[325165038,1714546236398,-500.0,0.00071232,120]
[325165040,1714546236409,-500.0,0.00071232,120]
[325165042,1714546236420,-500.0,0.00071232,120]
[325165044,1714546236430,-3014.12,0.00071232,120]
[325165046,1714546236440,-1177.13,0.00071232,120]
[325165048,1714546236450,-500.0,0.00071232,120]
[325165049,1714546236480,-262.52757685,0.00071232,2]
[325165051,1714546236510,-500.0,0.00071232,120]
[325165053,1714546236520,-500.0,0.00071232,120]
[325165055,1714546236530,-500.0,0.00071232,120]
[325165057,1714546236540,-437.52267171,0.00071232,120]
[325165059,1714546236551,-500.0,0.00071232,120]
[325165061,1714546236561,-500.0,0.00071232,120]
[325165063,1714546236571,-500.0,0.00071232,120]
[325165065,1714546236581,-501.18357816,0.00071232,120]
[325165067,1714546236591,-500.0,0.00071232,120]
[325165069,1714546236600,-500.0,0.00071232,120]
[325165071,1714546236613,-500.0,0.00071232,120]
[325165073,1714546236624,-500.0,0.00071232,120]
[325165075,1714546236637,-500.0,0.00071232,120]
[325165077,1714546236647,-500.0,0.00071232,120]
[325165079,1714546236657,-500.0,0.00071232,120]
[325165081,1714546236666,-500.0,0.00071232,120]
[325165083,1714546236675,-500.0,0.00071232,120]
[325165085,1714546236685,-501.23001466,0.00071232,120]
[325165087,1714546236694,-500.0,0.00071232,120]
[325165089,1714546236703,-500.0,0.00071232,120]
[325165091,1714546236714,-500.0,0.00071232,120]
[325165093,1714546236723,-500.0,0.00071232,120]
[325165095,1714546236732,-529.00492174,0.00071232,120]
[325165097,1714546236742,-1841.07,0.00071232,120]
[325165099,1714546236752,-500.0,0.00071232,120]
[325165101,1714546236762,-500.0,0.00071232,120]
[325165103,1714546236771,-430.34786651,0.00071232,120]
[325165105,1714546236780,-500.0,0.00071232,3]
[325165107,1714546236788,-500.0,0.00071232,120]
[325165109,1714546236798,-500.0,0.00071232,120]
[325165111,1714546236807,-500.0,0.00071232,120]
[325165113,1714546236817,-500.0,0.00071232,120]
[325165115,1714546236826,-500.0,0.00071232,120]
[325165117,1714546236835,-500.33285864,0.00071232,120]
[325165118,1714546236844,-502.98325191,0.00071232,120]
[325165120,1714546236853,-503.04391728,0.00071232,120]
[325165122,1714546236863,-212.15649685,0.00071232,120]
[325165124,1714546236872,-500.0,0.00071232,120]
[325165126,1714546236881,-500.0,0.00071232,120]
[325165128,1714546236894,-1851.3,0.00071232,120]
[325165130,1714546236903,-500.0,0.00071232,120]
[325165132,1714546236912,-500.0,0.00071232,120]
[325165134,1714546236921,-500.000001,0.00071232,120]
[325165136,1714546236930,-500.0,0.00071232,120]
[325165138,1714546236939,-501.34792112,0.00071232,120]
[325165140,1714546236948,-500.0,0.00071232,120]
[325165142,1714546236958,-500.0,0.00071232,120]
[325165144,1714546236967,-500.0,0.00071232,120]
[325165146,1714546236977,-502.41951172,0.00071232,120]
[325165148,1714546236987,-500.0,0.00071232,120]
[325165150,1714546236996,-1715.08,0.00071232,120]
[325165152,1714546237005,-500.0,0.00071232,120]
[325165154,1714546237014,-500.0,0.00071232,120]
[325165156,1714546237024,-500.0,0.00071232,120]
[325165158,1714546237033,-527.76576287,0.00071232,120]
[325165160,1714546237043,-500.0,0.00071232,120]
[325165162,1714546237054,-508.19253996,0.00071232,120]
[325165165,1714546237068,-500.0,0.00071232,120]
[325165167,1714546237081,-500.0,0.00071232,20]
[325165170,1714546237095,-914.64,0.00071232,120]
[325165172,1714546237108,-500.0,0.00071232,120]
[325165174,1714546237118,-506.78251752,0.00071232,120]
[325165176,1714546237130,-500.0,0.00071232,120]
[325165179,1714546237143,-500.0,0.00071232,120]
[325165181,1714546237156,-500.0,0.00071232,120]
[325165183,1714546237168,-575.5951722,0.00071232,120]
[325165186,1714546237181,-500.0,0.00071232,120]
[325165188,1714546237194,-500.0,0.00071232,120]
[325165191,1714546237208,-1085.62,0.00071232,120]
[325165193,1714546237220,-352.00961747,0.00071232,120]
[325165195,1714546237233,-500.0,0.00071232,120]
[325165197,1714546237244,-500.0,0.00071232,120]
[325165200,1714546237256,-500.0,0.00071232,120]
[325165202,1714546237270,-500.0,0.00071232,120]
[325165204,1714546237286,-3533.27,0.00071232,120]
[325165207,1714546237298,-500.0,0.00071232,120]
[325165209,1714546237310,-500.0,0.00071232,120]
[325165211,1714546237322,-500.0,0.00071232,30]
[325165213,1714546237332,-500.0,0.00071232,120]
[325165215,1714546237343,-500.0,0.00071232,120]
[325165218,1714546237355,-500.0,0.00071232,120]
[325165220,1714546237368,-500.0,0.00071232,120]
[325165223,1714546237384,-414.68551336,0.00071232,120]
[325165225,1714546237396,-500.0,0.00071232,120]
[325165227,1714546237408,-500.0,0.00071232,120]
[325165229,1714546237421,-500.0,0.00071232,120]
[325165232,1714546237434,-500.0,0.00071232,120]
[325165234,1714546237446,-500.0,0.00071232,120]
[325165236,1714546237458,-500.0,0.00071232,120]
[325165238,1714546237483,-533.00181759,0.00071232,120]
[325165240,1714546237492,-500.0,0.00071232,120]
[325165242,1714546237504,-643.73274791,0.00071232,120]
[325165244,1714546237517,-500.0,0.00071232,120]
[325165246,1714546237528,-500.0,0.00071232,120]
[325165249,1714546237542,-500.0,0.00071232,120]
[325165251,1714546237552,-503.42461169,0.00071232,120]
[325165253,1714546237563,-500.0,0.00071232,120]
[325165255,1714546237574,-500.0,0.00071232,120]
[325165257,1714546237585,-605.25,0.00071232,120]
[325165260,1714546237597,-500.0,0.00071232,120]
[325165262,1714546237608,-500.0,0.00071232,120]
[325165264,1714546237618,-500.0,0.00071232,120]
[325165266,1714546237629,-500.0,0.00071232,120]
[325165268,1714546237641,-1054.69,0.00071232,120]
[325165270,1714546237652,-1415.76,0.00071232,120]
[325165273,1714546237663,-500.0,0.00071232,120]
[325165275,1714546237673,-504.77645063,0.00071232,120]
[325165277,1714546237684,-1014.83,0.00071232,120]
[325165279,1714546237695,-500.0,0.00071232,120]
[325165282,1714546237706,-212.75721461,0.00071232,120]
[325165285,1714546237717,-500.0,0.00071232,120]
[325165289,1714546237729,-500.0,0.00071232,120]
[325165291,1714546237740,-500.0,0.00071232,120]
[325165293,1714546237751,-500.0,0.00071232,120]
[325165295,1714546237762,-500.0,0.00071232,120]
[325165297,1714546237773,-500.0,0.00071232,120]
[325165300,1714546237784,-500.0,0.00071232,120]
[325165302,1714546237795,-500.0,0.00071232,120]
[325165304,1714546237805,-500.0,0.00071232,120]
[325165306,1714546237817,-1534.36,0.00071232,120]
[325165308,1714546237827,-500.0,0.00071232,120]
[325165311,1714546237838,-500.0,0.00071232,120]
[325165313,1714546237849,-500.0,0.00071232,120]
[325165315,1714546237859,-607.27199167,0.00071232,120]
[325165317,1714546237870,-500.0,0.00071232,120]
[325165319,1714546237881,-500.0,0.00071232,120]
[325165321,1714546237892,-500.0,0.00071232,120]
[325165323,1714546237903,-500.0,0.00071232,120]
[325165326,1714546237915,-1958.43,0.00071232,120]
[325165328,1714546237926,-498.36308607,0.00071232,120]
[325165330,1714546237937,-500.0,0.00071232,120]
[325165332,1714546237947,-504.23058945,0.00071232,120]
[325165334,1714546237958,-500.0,0.00071232,120]
[325165336,1714546237968,-500.0,0.00071232,120]
[325165339,1714546237979,-995.97,0.00071232,120]
[325165341,1714546237990,-500.0,0.00071232,120]
[325165343,1714546238000,-500.0,0.00071232,120]
[325165345,1714546238010,-500.0,0.00071232,120]
[325165347,1714546238021,-500.0,0.00071232,120]
[325165349,1714546238032,-500.0,0.00071232,120]
[325165351,1714546238043,-238.58891095,0.00071232,120]
[325165354,1714546238054,-500.0,0.00071232,120]
[325165356,1714546238064,-514.11053095,0.00071232,120]
[325165358,1714546238075,-500.0,0.00071232,120]
[325165360,1714546238086,-500.0,0.00071232,120]
[325165362,1714546238097,-500.0,0.00071232,120]
[325165365,1714546238108,-500.0,0.00071232,120]
[325165367,1714546238118,-500.0,0.00071232,120]
[325165369,1714546238129,-500.0,0.00071232,120]
[325165371,1714546238141,-500.0,0.00071232,120]
[325165373,1714546238152,-500.0,0.00071232,120]
[325165375,1714546238163,-644.07,0.00071232,120]
[325165378,1714546238174,-500.0,0.00071232,120]
[325165380,1714546238185,-500.0,0.00071232,120]
[325165382,1714546238196,-500.0,0.00071232,120]
[325165384,1714546238206,-500.0,0.00071232,120]
[325165386,1714546238217,-500.0,0.00071232,120]
[325165388,1714546238228,-500.82008952,0.00071232,120]
[325165391,1714546238240,-500.0,0.00071232,120]
[325165393,1714546238251,-500.0,0.00071232,120]
[325165395,1714546238260,-3882.92,0.00071232,120]
[325165399,1714546238401,-208.3697921,0.00071232,120]
[325165400,1714546238423,-717.21,0.00071232,120]
[325165401,1714546238432,-500.0,0.00071232,120]
[325165402,1714546238442,-500.46034649,0.00071232,120]
[325165403,1714546238451,-500.0,0.00071232,120]
[325165404,1714546238460,-500.0,0.00071232,120]
[325165405,1714546238469,-500.0,0.00071232,120]
[325165406,1714546238479,-500.0,0.00071232,120]
[325165408,1714546238489,-500.0,0.00071232,120]
[325165410,1714546238498,-500.0,0.00071232,120]
[325165412,1714546238508,-1734.84,0.00071232,120]
[325165414,1714546238518,-576.30168801,0.00071232,120]
[325165416,1714546238527,-500.0,0.00071232,120]
[325165418,1714546238537,-500.0,0.00071232,120]
[325165420,1714546238546,-500.0,0.00071232,120]
[325165422,1714546238556,-500.0,0.00071232,120]
[325165423,1714546238565,-500.0,0.00071232,120]
[325165425,1714546238575,-500.28759022,0.00071232,120]
[325165427,1714546238584,-317.79790342,0.00071232,120]
[325165429,1714546238594,-2727.98,0.00071232,120]
[325165431,1714546238603,-500.0,0.00071232,120]
[325165433,1714546238612,-500.0,0.00071232,120]
[325165435,1714546238621,-500.0,0.00071232,120]
[325165437,1714546238631,-500.0,0.00071232,120]
[325165439,1714546238643,-500.0,0.00071232,120]
[325165441,1714546238653,-300.0,0.00071232,7]
[325165443,1714546238663,-500.0,0.00071232,120]
[325165445,1714546238672,-500.0,0.00071232,120]
[325165447,1714546238682,-500.0,0.00071232,120]
[325165449,1714546238691,-3245.69,0.00071232,120]
[325165451,1714546238700,-500.0,0.00071232,120]
[325165453,1714546238710,-500.0,0.00071232,120]
[325165455,1714546238718,-500.0,0.00071232,120]
[325165457,1714546238728,-563.54,0.00071232,120]
[325165459,1714546238738,-807.45,0.00071232,120]
[325165461,1714546238747,-500.0,0.00071232,120]
[325165463,1714546238756,-500.0,0.00071232,120]
[325165465,1714546238765,-500.0,0.00071232,120]
[325165467,1714546238775,-2036.72,0.00071232,120]
[325165469,1714546238784,-500.0,0.00071232,120]
[325165471,1714546238794,-500.0,0.00071232,60]
[325165473,1714546238804,-541.64934852,0.00071232,120]
[325165475,1714546238813,-500.0,0.00071232,120]
[325165477,1714546238823,-500.0,0.00071232,120]
[325165479,1714546238832,-500.0,0.00071232,120]
[325165481,1714546238841,-500.0,0.00071232,120]
[325165483,1714546238851,-500.0,0.00071232,120]
[325165485,1714546238860,-500.0,0.00071232,120]
[325165487,1714546238869,-500.0,0.00071232,120]
[325165489,1714546238878,-500.0,0.00071232,120]
[325165491,1714546238889,-500.0,0.00071232,120]
[325165493,1714546238898,-500.0,0.00071232,120]
[325165495,1714546238908,-547.84897491,0.00071232,120]
[325165497,1714546238917,-999.61,0.00071232,120]
[325165499,1714546238926,-500.0,0.00071232,120]
[325165501,1714546238936,-500.0,0.00071232,120]
[325165503,1714546238945,-1298.07,0.00071232,120]
[325165505,1714546238954,-500.0,0.00071232,120]
[325165507,1714546238963,-500.0,0.00071232,120]
[325165509,1714546238972,-500.0,0.00071232,120]
[325165511,1714546238982,-500.0,0.00071232,120]
[325165513,1714546238991,-500.0,0.00071232,120]
[325165515,1714546239000,-500.0,0.00071232,120]
[325165517,1714546239009,-500.0,0.00071232,120]
[325165519,1714546239018,-500.0,0.00071232,120]
[325165521,1714546239027,-11125.5,0.00071232,120]
[325165523,1714546239036,-500.0,0.00071232,120]
[325165524,1714546239045,-500.0,0.00071232,120]
[325165526,1714546239054,-500.0,0.00071232,120]
[325165528,1714546239063,-500.0,0.00071232,120]
[325165530,1714546239073,-500.0,0.00071232,120]
[325165532,1714546239082,-500.0,0.00071232,120]
[325165534,1714546239091,-819.11,0.00071232,120]
[325165535,1714546239100,-500.0,0.00071232,120]
[325165536,1714546239110,-500.0,0.00071232,120]
[325165537,1714546239119,-500.0,0.00071232,120]
[325165538,1714546239129,-500.0,0.00071232,120]
[325165539,1714546239140,-500.0,0.00071232,120]
[325165540,1714546239150,-500.0,0.00071232,120]
[325165541,1714546239159,-514.25,0.00071232,21]
[325165542,1714546239169,-500.0,0.00071232,7]
[325165543,1714546239179,-500.0,0.00071232,120]
[325165544,1714546239188,-151.0,0.00071232,120]
[325165545,1714546239197,-692.07,0.00071232,120]
[325165546,1714546239206,-500.0,0.00071232,120]
[325165547,1714546239216,-1802.95,0.00071232,120]
[325165548,1714546239225,-481.78261855,0.00071232,120]
[325165549,1714546239235,-500.0,0.00071232,120]
[325165550,1714546239244,-2749.95,0.00071232,120]
[325165551,1714546239253,-500.0,0.00071232,120]
[325165552,1714546239263,-500.0,0.00071232,120]
[325165553,1714546239274,-1019.53,0.00071232,120]